[Event "*** SCC Grand Prix: Titled Tuesday Blitz"]
[Site "Chess.com"]
[Date "2020.07.21"]
[Round "5"]
[White "jacky72"]
[Black "Joseacorrea"]
[Result "1-0"]
[WhiteElo "2621"]
[BlackElo "1970"]
[TimeControl "180+1"]
[EndTime "10:54:16 PDT"]
[Termination "jacky72 won on time"]

1. Nf3 {[%clk 0:03:00.9]} 1... d5 {[%clk 0:02:59]} 2. d4 {[%clk 0:02:46.5]} 2...
Nf6 {[%clk 0:02:54.1]} 3. c4 {[%clk 0:02:44.4]} 3... e6 {[%clk 0:02:53.8]} 4.
Nc3 {[%clk 0:02:44.1]} 4... c6 {[%clk 0:02:46.6]} 5. cxd5 {[%clk 0:02:40.6]}
5... exd5 {[%clk 0:02:45.5]} 6. Bg5 {[%clk 0:02:40.1]} 6... Be7 {[%clk 0:02:45]}
7. Qc2 {[%clk 0:02:37.1]} 7... O-O {[%clk 0:02:40.1]} 8. e3 {[%clk 0:02:36.6]}
8... h6 {[%clk 0:02:38.3]} 9. Bh4 {[%clk 0:02:35.4]} 9... Nbd7 {[%clk
0:02:30.6]} 10. Bd3 {[%clk 0:02:33.6]} 10... Re8 {[%clk 0:02:26.4]} 11. O-O
{[%clk 0:02:29]} 11... Nf8 {[%clk 0:02:14.5]} 12. Ne5 {[%clk 0:02:18.5]} 12...
N6d7 {[%clk 0:02:02.3]} 13. Bg3 {[%clk 0:02:15.7]} 13... Nxe5 {[%clk 0:01:55.1]}
14. Bxe5 {[%clk 0:02:16.6]} 14... Bd6 {[%clk 0:01:50.8]} 15. Bxd6 {[%clk
0:02:13.8]} 15... Qxd6 {[%clk 0:01:49.8]} 16. Rab1 {[%clk 0:02:14.7]} 16... a5
{[%clk 0:01:25.8]} 17. a3 {[%clk 0:02:12.8]} 17... Bg4 {[%clk 0:01:01.2]} 18. b4
{[%clk 0:02:12]} 18... axb4 {[%clk 0:00:59.5]} 19. axb4 {[%clk 0:02:12.9]} 19...
Bh5 {[%clk 0:00:57.4]} 20. b5 {[%clk 0:02:10.1]} 20... Bg6 {[%clk 0:00:56.4]}
21. bxc6 {[%clk 0:02:08.8]} 21... bxc6 {[%clk 0:00:54.6]} 22. Bxg6 {[%clk
0:02:05.8]} 22... Nxg6 {[%clk 0:00:52.2]} 23. Na4 {[%clk 0:02:06.7]} 23... Reb8
{[%clk 0:00:28.9]} 24. Rxb8+ {[%clk 0:02:04.9]} 24... Rxb8 {[%clk 0:00:28]} 25.
Rc1 {[%clk 0:02:05.8]} 25... Ne7 {[%clk 0:00:13.6]} 26. h3 {[%clk 0:02:00.3]}
26... Rc8 {[%clk 0:00:10.6]} 27. Nc5 {[%clk 0:01:57.4]} 27... Rb8 {[%clk
0:00:10.3]} 28. Ra1 {[%clk 0:01:50.5]} 28... Qg6 {[%clk 0:00:07.9]} 29. Qxg6
{[%clk 0:01:49.4]} 29... Nxg6 {[%clk 0:00:08.8]} 30. Ra6 {[%clk 0:01:47.3]}
30... Rb1+ {[%clk 0:00:08.2]} 31. Kh2 {[%clk 0:01:47]} 31... Rb2 {[%clk
0:00:07.7]} 32. Kg3 {[%clk 0:01:47.2]} 32... Ne7 {[%clk 0:00:06.1]} 33. Ra7
{[%clk 0:01:47.5]} 33... Nf5+ {[%clk 0:00:04.5]} 34. Kf3 {[%clk 0:01:47.3]}
34... Nh4+ {[%clk 0:00:04.1]} 35. Kg3 {[%clk 0:01:47.2]} 35... Nf5+ {[%clk
0:00:04.1]} 36. Kf3 {[%clk 0:01:36.5]} 36... Nh4+ {[%clk 0:00:02.7]} 37. Kg4
{[%clk 0:01:37.4]} 37... Ng6 {[%clk 0:00:02.8]} 38. Kg3 {[%clk 0:01:35.4]} 38...
f5 {[%clk 0:00:01.8]} 39. Ne6 {[%clk 0:01:33.7]} 1-0

[Event "*** SCC Grand Prix: Titled Tuesday Blitz"]
[Site "Chess.com"]
[Date "2020.07.21"]
[Round "5"]
[White "PotapovaM"]
[Black "GMJustin"]
[Result "1-0"]
[WhiteElo "2470"]
[BlackElo "2299"]
[TimeControl "180+1"]
[EndTime "10:54:17 PDT"]
[Termination "PotapovaM won on time"]

1. d4 {[%clk 0:03:00.9]} 1... d5 {[%clk 0:02:44.2]} 2. c4 {[%clk 0:03:01.3]}
2... dxc4 {[%clk 0:02:41.6]} 3. e4 {[%clk 0:03:01.2]} 3... c5 {[%clk 0:02:41]}
4. d5 {[%clk 0:03:00.4]} 4... e6 {[%clk 0:02:39.7]} 5. Bxc4 {[%clk 0:02:56]}
5... Nf6 {[%clk 0:01:21.1]} 6. Nc3 {[%clk 0:02:55.2]} 6... exd5 {[%clk
0:01:17.4]} 7. exd5 {[%clk 0:02:54.5]} 7... Bd6 {[%clk 0:01:09.2]} 8. Nf3 {[%clk
0:02:54.1]} 8... O-O {[%clk 0:01:08.3]} 9. O-O {[%clk 0:02:54.7]} 9... a6 {[%clk
0:01:07.9]} 10. Bg5 {[%clk 0:02:50.9]} 10... b5 {[%clk 0:01:04.7]} 11. Bd3
{[%clk 0:02:49.8]} 11... h6 {[%clk 0:00:50.7]} 12. Bh4 {[%clk 0:02:48.2]} 12...
Re8 {[%clk 0:00:12.5]} 13. Bc2 {[%clk 0:02:43.8]} 13... Be7 {[%clk 0:00:08.4]}
14. Qd3 {[%clk 0:02:24.8]} 14... c4 {[%clk 0:00:07.9]} 15. Qd2 {[%clk 0:02:18]}
15... Bb7 {[%clk 0:00:08.1]} 16. Rad1 {[%clk 0:02:11]} 16... b4 {[%clk
0:00:06.5]} 17. Na4 {[%clk 0:02:08.5]} 17... Nxd5 {[%clk 0:00:06.4]} 18. Bg3
{[%clk 0:02:07.2]} 18... Nd7 {[%clk 0:00:05.1]} 19. Nd4 {[%clk 0:02:02.7]} 19...
Qa5 {[%clk 0:00:04.7]} 20. Nf5 {[%clk 0:01:57.7]} 20... Bf8 {[%clk 0:00:02.9]}
21. Qd4 {[%clk 0:01:49.2]} 21... Rad8 {[%clk 0:00:02.5]} 22. Qg4 {[%clk
0:01:48.1]} 22... N7f6 {[%clk 0:00:02.3]} 23. Nxh6+ {[%clk 0:01:47.1]} 23... Kh8
{[%clk 0:00:02.6]} 24. Nxf7+ {[%clk 0:01:46]} 24... Kg8 {[%clk 0:00:03.1]} 25.
Qg6 {[%clk 0:01:37.1]} 25... b3 {[%clk 0:00:03.3]} 26. axb3 {[%clk 0:01:29.4]}
26... cxb3 {[%clk 0:00:03.5]} 27. Bxb3 {[%clk 0:01:29.7]} 27... Qb5 {[%clk
0:00:03.5]} 28. Nxd8 {[%clk 0:01:25.2]} 28... Rxd8 {[%clk 0:00:03.3]} 29. Bc2
{[%clk 0:01:17.8]} 29... Qb4 {[%clk 0:00:01.8]} 30. Nc3 {[%clk 0:01:11.7]} 1-0

[Event "*** SCC Grand Prix: Titled Tuesday Blitz"]
[Site "Chess.com"]
[Date "2020.07.21"]
[Round "5"]
[White "Anna_ChessMate"]
[Black "Fischerev7"]
[Result "1-0"]
[WhiteElo "2509"]
[BlackElo "2351"]
[TimeControl "180+1"]
[EndTime "10:54:18 PDT"]
[Termination "Anna_ChessMate won by resignation"]

1. d4 {[%clk 0:03:00.9]} 1... Nf6 {[%clk 0:02:59.2]} 2. c4 {[%clk 0:03:01.5]}
2... e6 {[%clk 0:02:58.3]} 3. Nf3 {[%clk 0:03:00.4]} 3... b6 {[%clk 0:02:57.5]}
4. g3 {[%clk 0:03:00.7]} 4... Ba6 {[%clk 0:02:57.3]} 5. Qc2 {[%clk 0:02:59.5]}
5... Bb7 {[%clk 0:02:56.6]} 6. Bg2 {[%clk 0:02:59.8]} 6... Be7 {[%clk
0:02:56.3]} 7. O-O {[%clk 0:02:59.3]} 7... O-O {[%clk 0:02:53.8]} 8. Nc3 {[%clk
0:02:59.8]} 8... c5 {[%clk 0:02:53.5]} 9. e4 {[%clk 0:02:55.4]} 9... d6 {[%clk
0:02:45.3]} 10. d5 {[%clk 0:02:54.6]} 10... e5 {[%clk 0:02:43.3]} 11. h3 {[%clk
0:02:48.9]} 11... Nbd7 {[%clk 0:02:41.1]} 12. Be3 {[%clk 0:02:49.2]} 12... Ne8
{[%clk 0:02:38.1]} 13. Nd2 {[%clk 0:02:49]} 13... g6 {[%clk 0:02:36.9]} 14. f4
{[%clk 0:02:49.4]} 14... Bf6 {[%clk 0:02:31.6]} 15. Rae1 {[%clk 0:02:47.8]}
15... Bg7 {[%clk 0:02:25.3]} 16. Nf3 {[%clk 0:02:40.6]} 16... a6 {[%clk
0:02:18.1]} 17. fxe5 {[%clk 0:02:36.1]} 17... Nxe5 {[%clk 0:02:15.2]} 18. b3
{[%clk 0:02:30.1]} 18... Qe7 {[%clk 0:02:05.7]} 19. Ne2 {[%clk 0:02:27.4]} 19...
b5 {[%clk 0:02:02.1]} 20. Nf4 {[%clk 0:02:22]} 20... Nf6 {[%clk 0:01:39.9]} 21.
Nxe5 {[%clk 0:02:19.1]} 21... Qxe5 {[%clk 0:01:40.8]} 22. Nd3 {[%clk 0:02:12.3]}
22... Qe7 {[%clk 0:01:35.8]} 23. e5 {[%clk 0:02:12]} 23... Nd7 {[%clk
0:01:27.7]} 24. exd6 {[%clk 0:02:11.8]} 24... Qxd6 {[%clk 0:01:28.6]} 25. Qf2
{[%clk 0:02:09.7]} 25... Rae8 {[%clk 0:01:13.1]} 26. Kh2 {[%clk 0:02:03.6]}
26... Bc3 {[%clk 0:00:57.1]} 27. Re2 {[%clk 0:02:01.9]} 27... bxc4 {[%clk
0:00:50.1]} 28. bxc4 {[%clk 0:02:01.4]} 28... Ne5 {[%clk 0:00:50.4]} 29. Nxc5
{[%clk 0:01:50]} 29... Qc7 {[%clk 0:00:23]} 30. Nxb7 {[%clk 0:01:48.1]} 30...
Qxb7 {[%clk 0:00:23.9]} 31. Bh6 {[%clk 0:01:39.8]} 31... Nxc4 {[%clk 0:00:20.6]}
32. Bxf8 {[%clk 0:01:40.2]} 32... Rxf8 {[%clk 0:00:21.5]} 33. Qc5 {[%clk
0:01:33]} 33... Qb4 {[%clk 0:00:11.5]} 34. Qxb4 {[%clk 0:01:31.3]} 34... Bxb4
{[%clk 0:00:12.4]} 35. Rf4 {[%clk 0:01:29.2]} 35... Rc8 {[%clk 0:00:10.3]} 36.
Ree4 {[%clk 0:01:29.6]} 36... Bd2 {[%clk 0:00:09.5]} 37. Rxc4 {[%clk 0:01:29.3]}
1-0

[Event "*** SCC Grand Prix: Titled Tuesday Blitz"]
[Site "Chess.com"]
[Date "2020.07.21"]
[Round "5"]
[White "UCantHandleDenker"]
[Black "sewin16"]
[Result "1-0"]
[WhiteElo "2555"]
[BlackElo "2382"]
[TimeControl "180+1"]
[EndTime "10:54:21 PDT"]
[Termination "UCantHandleDenker won by resignation"]

1. Nf3 {[%clk 0:02:59.7]} 1... d5 {[%clk 0:02:06.8]} 2. g3 {[%clk 0:02:58.1]}
2... c6 {[%clk 0:02:07.1]} 3. Bg2 {[%clk 0:02:57.8]} 3... Nf6 {[%clk 0:02:08]}
4. O-O {[%clk 0:02:58.3]} 4... Bf5 {[%clk 0:02:07.6]} 5. d3 {[%clk 0:02:59.2]}
5... e6 {[%clk 0:02:07.4]} 6. Nbd2 {[%clk 0:02:59]} 6... Nbd7 {[%clk 0:02:07.3]}
7. Qe1 {[%clk 0:02:59.3]} 7... h6 {[%clk 0:02:07.2]} 8. e4 {[%clk 0:02:59]} 8...
Bh7 {[%clk 0:02:07.7]} 9. e5 {[%clk 0:02:55]} 9... Ng8 {[%clk 0:02:06.9]} 10.
Nb3 {[%clk 0:02:55.1]} 10... Ne7 {[%clk 0:02:05.2]} 11. Qe2 {[%clk 0:02:48.7]}
11... c5 {[%clk 0:02:05]} 12. c4 {[%clk 0:02:41]} 12... dxc4 {[%clk 0:02:03.2]}
13. dxc4 {[%clk 0:02:40.6]} 13... Nc6 {[%clk 0:02:03.8]} 14. Rd1 {[%clk
0:02:17.2]} 14... Qc7 {[%clk 0:02:03.5]} 15. h4 {[%clk 0:02:10.6]} 15... Be7
{[%clk 0:02:03.3]} 16. Bf4 {[%clk 0:02:10.2]} 16... O-O {[%clk 0:01:58.2]} 17.
Rd2 {[%clk 0:02:08.8]} 17... Rad8 {[%clk 0:01:57]} 18. Rad1 {[%clk 0:02:08.2]}
18... Nb6 {[%clk 0:01:54.9]} 19. Rd6 {[%clk 0:02:00.8]} 19... Bxd6 {[%clk
0:01:54.3]} 20. exd6 {[%clk 0:02:00.4]} 20... Qc8 {[%clk 0:01:54.2]} 21. Nxc5
{[%clk 0:01:59.4]} 21... Nb8 {[%clk 0:01:52.4]} 22. b4 {[%clk 0:01:54.9]} 22...
Nxc4 {[%clk 0:01:52.4]} 23. Qxc4 {[%clk 0:01:51.7]} 23... b6 {[%clk 0:01:52.4]}
24. Ne5 {[%clk 0:01:35.7]} 24... bxc5 {[%clk 0:01:51.7]} 25. bxc5 {[%clk
0:01:35.4]} 25... f6 {[%clk 0:01:40.3]} 26. d7 {[%clk 0:01:30.6]} 26... Qa6
{[%clk 0:01:23.2]} 27. Qxa6 {[%clk 0:01:27.4]} 27... Nxa6 {[%clk 0:01:23.1]} 28.
Nc6 {[%clk 0:01:27.1]} 28... Nxc5 {[%clk 0:01:21.4]} 29. Nxd8 {[%clk 0:01:26]}
29... Rxd8 {[%clk 0:01:20.8]} 30. Bc6 {[%clk 0:01:15.2]} 30... e5 {[%clk
0:00:47.2]} 31. Be3 {[%clk 0:01:14.9]} 31... Be4 {[%clk 0:00:32]} 32. Bb5 {[%clk
0:01:05.3]} 32... Bf3 {[%clk 0:00:28.3]} 33. Bxc5 {[%clk 0:00:54.4]} 33... Bxd1
{[%clk 0:00:27.8]} 34. Be7 {[%clk 0:00:54.9]} 34... Rxd7 {[%clk 0:00:25.5]} 35.
Bxd7 {[%clk 0:00:54.1]} 1-0

[Event "*** SCC Grand Prix: Titled Tuesday Blitz"]
[Site "Chess.com"]
[Date "2020.07.21"]
[Round "5"]
[White "Manukyan_Artak"]
[Black "keshka01"]
[Result "0-1"]
[WhiteElo "2391"]
[BlackElo "2566"]
[TimeControl "180+1"]
[EndTime "10:54:24 PDT"]
[Termination "keshka01 won by resignation"]

1. e4 {[%clk 0:03:00.2]} 1... Nf6 {[%clk 0:03:00.1]} 2. Nc3 {[%clk 0:02:54.4]}
2... e5 {[%clk 0:02:59.7]} 3. Bc4 {[%clk 0:02:43.2]} 3... c6 {[%clk 0:02:53.8]}
4. d3 {[%clk 0:02:41.1]} 4... d5 {[%clk 0:02:52.9]} 5. Bb3 {[%clk 0:02:37.9]}
5... dxe4 {[%clk 0:02:46.9]} 6. Nxe4 {[%clk 0:02:26.9]} 6... Nxe4 {[%clk
0:02:40.1]} 7. dxe4 {[%clk 0:02:27.8]} 7... Qxd1+ {[%clk 0:02:40.7]} 8. Kxd1
{[%clk 0:02:28.7]} 8... Nd7 {[%clk 0:02:33.5]} 9. Be3 {[%clk 0:02:09.8]} 9...
Bc5 {[%clk 0:02:28.4]} 10. Ke2 {[%clk 0:02:06.8]} 10... Bxe3 {[%clk 0:02:23.3]}
11. Kxe3 {[%clk 0:02:06.5]} 11... Nc5 {[%clk 0:02:24.2]} 12. Nf3 {[%clk
0:02:03.3]} 12... f6 {[%clk 0:02:24.2]} 13. Rhd1 {[%clk 0:02:02.2]} 13... Bg4
{[%clk 0:02:19.1]} 14. Rd2 {[%clk 0:01:58.8]} 14... Ke7 {[%clk 0:02:17.1]} 15.
Rad1 {[%clk 0:01:56.5]} 15... Bxf3 {[%clk 0:02:12.9]} 16. Kxf3 {[%clk
0:01:56.2]} 16... Rhd8 {[%clk 0:02:13.6]} 17. Ke3 {[%clk 0:01:50.3]} 17... b5
{[%clk 0:01:59.7]} 18. c3 {[%clk 0:01:44.4]} 18... a5 {[%clk 0:01:54.2]} 19. g3
{[%clk 0:01:36.6]} 19... a4 {[%clk 0:01:52.6]} 20. Bc2 {[%clk 0:01:36.6]} 20...
Rxd2 {[%clk 0:01:45.7]} 21. Rxd2 {[%clk 0:01:36.3]} 21... Rd8 {[%clk 0:01:46.6]}
22. Rxd8 {[%clk 0:01:32.4]} 22... Kxd8 {[%clk 0:01:47.5]} 23. a3 {[%clk
0:01:30]} 23... Ke7 {[%clk 0:01:46.5]} 24. h4 {[%clk 0:01:29.4]} 24... Nb7
{[%clk 0:01:46.1]} 25. f4 {[%clk 0:01:27.6]} 25... Na5 {[%clk 0:01:43.5]} 26.
Bd3 {[%clk 0:01:23.7]} 26... Kd6 {[%clk 0:01:43.3]} 27. g4 {[%clk 0:00:40.8]}
27... Kc5 {[%clk 0:01:38.8]} 28. fxe5 {[%clk 0:00:34.2]} 28... fxe5 {[%clk
0:01:39.7]} 29. Kd2 {[%clk 0:00:28.5]} 29... Nc4+ {[%clk 0:01:24.6]} 30. Bxc4
{[%clk 0:00:26.2]} 30... Kxc4 {[%clk 0:01:25.5]} 31. Kc2 {[%clk 0:00:24.2]}
31... c5 {[%clk 0:01:24.4]} 32. g5 {[%clk 0:00:23]} 32... g6 {[%clk 0:01:21.3]}
33. Kd2 {[%clk 0:00:20.5]} 33... Kb3 {[%clk 0:01:21.5]} 34. Kc1 {[%clk
0:00:20.3]} 34... b4 {[%clk 0:01:17.3]} 35. cxb4 {[%clk 0:00:20.4]} 35... cxb4
{[%clk 0:01:18.2]} 36. axb4 {[%clk 0:00:19.7]} 36... Kxb4 {[%clk 0:01:19.1]} 37.
Kc2 {[%clk 0:00:19.2]} 37... Kc4 {[%clk 0:01:19.5]} 38. Kb1 {[%clk 0:00:18.2]}
38... Kd4 {[%clk 0:01:19.8]} 39. Ka2 {[%clk 0:00:18.2]} 39... Kxe4 {[%clk
0:01:20.3]} 40. Ka3 {[%clk 0:00:19.1]} 40... Kd4 {[%clk 0:01:20.5]} 41. Kxa4
{[%clk 0:00:20]} 41... e4 {[%clk 0:01:21.1]} 42. b4 {[%clk 0:00:20.9]} 42... e3
{[%clk 0:01:21.4]} 43. b5 {[%clk 0:00:21.8]} 43... e2 {[%clk 0:01:22]} 0-1

[Event "*** SCC Grand Prix: Titled Tuesday Blitz"]
[Site "Chess.com"]
[Date "2020.07.21"]
[Round "5"]
[White "MendozaDavid2000"]
[Black "Maksat-94"]
[Result "0-1"]
[WhiteElo "2279"]
[BlackElo "2449"]
[TimeControl "180+1"]
[EndTime "10:54:25 PDT"]
[Termination "Maksat-94 won by resignation"]

1. d4 {[%clk 0:03:00.9]} 1... Nf6 {[%clk 0:02:58.4]} 2. c4 {[%clk 0:03:00.7]}
2... c5 {[%clk 0:02:58.9]} 3. d5 {[%clk 0:02:46.3]} 3... e6 {[%clk 0:02:58.7]}
4. Nc3 {[%clk 0:02:45.8]} 4... exd5 {[%clk 0:02:58.2]} 5. cxd5 {[%clk
0:02:46.7]} 5... Bd6 {[%clk 0:02:58.3]} 6. g3 {[%clk 0:02:42.3]} 6... O-O {[%clk
0:02:57.4]} 7. Bg2 {[%clk 0:02:42.3]} 7... Bc7 {[%clk 0:02:56.3]} 8. Nf3 {[%clk
0:02:40.3]} 8... d6 {[%clk 0:02:55.9]} 9. O-O {[%clk 0:02:40]} 9... Re8 {[%clk
0:02:55]} 10. Nd2 {[%clk 0:02:33.8]} 10... a6 {[%clk 0:02:54.6]} 11. a4 {[%clk
0:02:33.4]} 11... Nbd7 {[%clk 0:02:54.9]} 12. Nc4 {[%clk 0:02:28]} 12... Ne5
{[%clk 0:02:53.9]} 13. Nxe5 {[%clk 0:02:25.7]} 13... Rxe5 {[%clk 0:02:53]} 14.
e4 {[%clk 0:02:24.7]} 14... Rb8 {[%clk 0:02:51.8]} 15. f4 {[%clk 0:02:19.9]}
15... Re8 {[%clk 0:02:52.1]} 16. Qd3 {[%clk 0:02:09.6]} 16... Bd7 {[%clk
0:02:49.6]} 17. Kh1 {[%clk 0:01:42.7]} 17... b5 {[%clk 0:02:48.7]} 18. axb5
{[%clk 0:01:39.4]} 18... axb5 {[%clk 0:02:48.4]} 19. e5 {[%clk 0:01:37.5]} 19...
dxe5 {[%clk 0:02:41.4]} 20. d6 {[%clk 0:01:37.1]} 20... Bb6 {[%clk 0:02:35.6]}
21. fxe5 {[%clk 0:01:35.9]} 21... Rxe5 {[%clk 0:02:34.5]} 22. Bf4 {[%clk
0:01:34.8]} 22... c4 {[%clk 0:02:30.8]} 23. Qd2 {[%clk 0:01:24.7]} 23... Rh5
{[%clk 0:02:27.8]} 24. Bg5 {[%clk 0:01:08.4]} 24... Ng4 {[%clk 0:02:18.3]} 25.
h4 {[%clk 0:01:08.1]} 25... f6 {[%clk 0:01:36.3]} 26. Bd5+ {[%clk 0:00:50.4]}
26... Kh8 {[%clk 0:01:33.6]} 27. Bf7 {[%clk 0:00:50.8]} 27... Bc6+ {[%clk
0:01:17.1]} 28. Nd5 {[%clk 0:00:14.3]} 28... Qxd6 {[%clk 0:01:14.9]} 29. Bf4
{[%clk 0:00:14.5]} 29... Rxd5 {[%clk 0:01:06.2]} 0-1

[Event "*** SCC Grand Prix: Titled Tuesday Blitz"]
[Site "Chess.com"]
[Date "2020.07.21"]
[Round "5"]
[White "Playgood28"]
[Black "Sn00pPawn"]
[Result "1-0"]
[WhiteElo "2276"]
[BlackElo "1796"]
[TimeControl "180+1"]
[EndTime "10:54:25 PDT"]
[Termination "Playgood28 won on time"]

1. d4 {[%clk 0:03:00.9]} 1... Nf6 {[%clk 0:02:59.1]} 2. c4 {[%clk 0:03:00.4]}
2... g6 {[%clk 0:02:58.9]} 3. Nc3 {[%clk 0:03:00.2]} 3... Bg7 {[%clk 0:02:59]}
4. Nf3 {[%clk 0:03:00]} 4... O-O {[%clk 0:02:58.3]} 5. Bf4 {[%clk 0:02:59.2]}
5... d6 {[%clk 0:02:50.1]} 6. h3 {[%clk 0:02:58.9]} 6... Nbd7 {[%clk 0:02:43.9]}
7. e3 {[%clk 0:02:59]} 7... Qe8 {[%clk 0:02:31.4]} 8. Be2 {[%clk 0:02:57.7]}
8... e5 {[%clk 0:02:31.2]} 9. Bh2 {[%clk 0:02:53.2]} 9... c6 {[%clk 0:02:25.1]}
10. O-O {[%clk 0:02:50.2]} 10... Qe7 {[%clk 0:02:23.9]} 11. Rc1 {[%clk
0:02:36.9]} 11... Re8 {[%clk 0:02:03.4]} 12. dxe5 {[%clk 0:02:32.7]} 12... Nxe5
{[%clk 0:01:59.3]} 13. b3 {[%clk 0:02:16.3]} 13... Bf5 {[%clk 0:01:47.3]} 14.
Nd4 {[%clk 0:02:09.4]} 14... Bd7 {[%clk 0:01:40.9]} 15. Qc2 {[%clk 0:02:08]}
15... c5 {[%clk 0:01:03.6]} 16. Nf3 {[%clk 0:02:06.6]} 16... Bc6 {[%clk
0:01:00.8]} 17. Rfd1 {[%clk 0:01:48.4]} 17... Nxf3+ {[%clk 0:00:49.7]} 18. Bxf3
{[%clk 0:01:47.8]} 18... Bxf3 {[%clk 0:00:48.1]} 19. gxf3 {[%clk 0:01:43.1]}
19... Rad8 {[%clk 0:00:36.7]} 20. Nb5 {[%clk 0:01:32.1]} 20... d5 {[%clk
0:00:13.7]} 21. cxd5 {[%clk 0:01:22.5]} 21... Nxd5 {[%clk 0:00:09.6]} 22. Qxc5
{[%clk 0:01:14.1]} 22... Qd7 {[%clk 0:00:08.7]} 23. Nd6 {[%clk 0:01:08.4]} 23...
Nf6 {[%clk 0:00:02.3]} 24. Nxe8 {[%clk 0:00:45.7]} 1-0

[Event "*** SCC Grand Prix: Titled Tuesday Blitz"]
[Site "Chess.com"]
[Date "2020.07.21"]
[Round "5"]
[White "nrvignesh"]
[Black "AsaHoffmann"]
[Result "1-0"]
[WhiteElo "2768"]
[BlackElo "2432"]
[TimeControl "180+1"]
[EndTime "10:54:26 PDT"]
[Termination "nrvignesh won by resignation"]

1. d4 {[%clk 0:03:00.9]} 1... Nf6 {[%clk 0:02:57.6]} 2. Nf3 {[%clk 0:03:01.8]}
2... d6 {[%clk 0:02:55.8]} 3. g3 {[%clk 0:03:01.2]} 3... c6 {[%clk 0:02:54.9]}
4. Bg2 {[%clk 0:03:00.2]} 4... Bf5 {[%clk 0:02:54.1]} 5. O-O {[%clk 0:02:59.5]}
5... h6 {[%clk 0:02:53.8]} 6. c4 {[%clk 0:02:58.9]} 6... Nbd7 {[%clk 0:02:53.2]}
7. Nc3 {[%clk 0:02:58.1]} 7... e5 {[%clk 0:02:52.6]} 8. Re1 {[%clk 0:02:56.9]}
8... e4 {[%clk 0:02:51.6]} 9. Nd2 {[%clk 0:02:56.3]} 9... d5 {[%clk 0:02:51.3]}
10. Qb3 {[%clk 0:02:55.1]} 10... Qb6 {[%clk 0:02:28.1]} 11. cxd5 {[%clk
0:02:46.3]} 11... Qxb3 {[%clk 0:02:26.8]} 12. axb3 {[%clk 0:02:41.6]} 12... cxd5
{[%clk 0:02:26.4]} 13. Nb5 {[%clk 0:02:41.3]} 13... Kd8 {[%clk 0:02:16.1]} 14.
Nf1 {[%clk 0:02:18.3]} 14... a6 {[%clk 0:02:03.5]} 15. Bf4 {[%clk 0:02:17.4]}
15... g5 {[%clk 0:01:56.3]} 16. Bc7+ {[%clk 0:02:10.8]} 16... Ke8 {[%clk
0:01:50.4]} 17. Nd6+ {[%clk 0:02:01]} 17... Bxd6 {[%clk 0:01:47.3]} 18. Bxd6
{[%clk 0:02:01.9]} 18... Nb8 {[%clk 0:01:36.6]} 19. Ne3 {[%clk 0:01:58.2]} 19...
Be6 {[%clk 0:01:35.6]} 20. f3 {[%clk 0:01:52]} 20... Nc6 {[%clk 0:01:26.3]} 21.
fxe4 {[%clk 0:01:50.9]} 21... Nxd4 {[%clk 0:01:17.7]} 22. exd5 {[%clk 0:01:42]}
22... Nf5 {[%clk 0:00:59.3]} 23. dxe6 {[%clk 0:01:37.5]} 23... Nxd6 {[%clk
0:00:47]} 24. Nc4 {[%clk 0:01:26.3]} 24... Nxc4 {[%clk 0:00:39.7]} 25. bxc4
{[%clk 0:01:27.2]} 25... fxe6 {[%clk 0:00:38.2]} 26. Bxb7 {[%clk 0:01:25.8]}
26... Rb8 {[%clk 0:00:38]} 27. Rxa6 {[%clk 0:01:24.6]} 27... Kf7 {[%clk
0:00:32.9]} 28. Ra7 {[%clk 0:01:23.1]} 28... Kg6 {[%clk 0:00:31]} 29. c5 {[%clk
0:01:21.1]} 29... Rh7 {[%clk 0:00:26]} 30. c6 {[%clk 0:01:19.5]} 30... Rc7
{[%clk 0:00:25.1]} 31. b4 {[%clk 0:01:16.6]} 31... Nd5 {[%clk 0:00:23.6]} 32. b5
{[%clk 0:01:15.7]} 32... Nb6 {[%clk 0:00:19.5]} 33. Ra6 {[%clk 0:01:14.1]} 33...
Nc8 {[%clk 0:00:17]} 34. b6 {[%clk 0:01:11.5]} 34... Rcxb7 {[%clk 0:00:16.1]}
35. cxb7 {[%clk 0:01:09.9]} 35... Rxb7 {[%clk 0:00:15.9]} 36. Rc1 {[%clk
0:01:07.5]} 36... Nd6 {[%clk 0:00:14.5]} 37. Rc6 {[%clk 0:01:05.1]} 1-0

[Event "*** SCC Grand Prix: Titled Tuesday Blitz"]
[Site "Chess.com"]
[Date "2020.07.21"]
[Round "5"]
[White "Fortitudine"]
[Black "mariangie523"]
[Result "1/2-1/2"]
[WhiteElo "2287"]
[BlackElo "2024"]
[TimeControl "180+1"]
[EndTime "10:54:26 PDT"]
[Termination "Game drawn by agreement"]

1. d4 {[%clk 0:03:00.9]} 1... Nf6 {[%clk 0:02:59.3]} 2. Nc3 {[%clk 0:03:00.2]}
2... d6 {[%clk 0:02:57.2]} 3. e4 {[%clk 0:02:59.1]} 3... Nbd7 {[%clk 0:02:56.6]}
4. Nf3 {[%clk 0:02:58.2]} 4... g6 {[%clk 0:02:56.3]} 5. h3 {[%clk 0:02:56.3]}
5... Bg7 {[%clk 0:02:55.8]} 6. Be3 {[%clk 0:02:56.9]} 6... O-O {[%clk 0:02:55]}
7. Qd2 {[%clk 0:02:57.1]} 7... c5 {[%clk 0:02:54.3]} 8. O-O-O {[%clk 0:02:51]}
8... a6 {[%clk 0:02:41.7]} 9. dxc5 {[%clk 0:02:46.6]} 9... Qe8 {[%clk
0:02:09.2]} 10. cxd6 {[%clk 0:02:36.8]} 10... exd6 {[%clk 0:02:06.7]} 11. Bf4
{[%clk 0:01:47.1]} 11... Nc5 {[%clk 0:01:47.4]} 12. Bd3 {[%clk 0:01:06.9]} 12...
Ncxe4 {[%clk 0:01:30.4]} 13. Nxe4 {[%clk 0:01:05]} 13... Nxe4 {[%clk 0:01:26.2]}
14. Bxe4 {[%clk 0:01:02.9]} 14... Qxe4 {[%clk 0:01:26]} 15. Rhe1 {[%clk
0:00:35.8]} 15... Qa4 {[%clk 0:01:14.5]} 16. Kb1 {[%clk 0:00:30.1]} 16... Be6
{[%clk 0:01:10.8]} 17. b3 {[%clk 0:00:28.4]} 17... Qa3 {[%clk 0:00:58.4]} 18.
Qc1 {[%clk 0:00:28.1]} 18... Qa5 {[%clk 0:00:55.5]} 19. Bxd6 {[%clk 0:00:20.6]}
19... Rfc8 {[%clk 0:00:54.5]} 20. Be5 {[%clk 0:00:19.9]} 20... Bf5 {[%clk
0:00:49.1]} 21. Rd2 {[%clk 0:00:13.8]} 21... Bh6 {[%clk 0:00:39.4]} 1/2-1/2